bitfinex/quotes_BTCUSD_20230906
["timestamp","ask_amount","ask_price","bid_price","bid_amount"]
[1694011367068,3.32339842,25621.0,25620.0,0.0361]
[1694011367270,1.45538456,25621.0,25620.0,0.81674]
[1694011367472,1.45538456,25621.0,25620.0,1.59738]
[1694011367681,1.16126661,25621.0,25620.0,1.59738]
[1694011368089,1.02247753,25621.0,25620.0,1.59738]
[1694011368291,1.16126661,25621.0,25620.0,1.59738]
[1694011368493,1.02247753,25621.0,25620.0,1.59738]
[1694011368673,1.16126661,25621.0,25620.0,1.59738]
[1694011368874,1.16126661,25621.0,25620.0,0.81674]
[1694011369291,1.16126661,25621.0,25620.0,0.0361]
[1694011369448,2.62995729,25621.0,25620.0,0.0361]
[1694011369651,3.96521834,25621.0,25620.0,0.0361]
[1694011371005,3.06521834,25621.0,25620.0,0.0361]
[1694011371206,3.96521834,25621.0,25620.0,0.0361]
[1694011371589,5.47695629,25621.0,25620.0,0.0361]
[1694011371789,5.29206043,25621.0,25620.0,0.0361]
[1694011371992,4.51145143,25621.0,25620.0,0.0361]
[1694011372228,3.13526472,25621.0,25620.0,0.0361]
[1694011372656,4.51145143,25621.0,25620.0,0.0361]
[1694011375355,3.91586563,25621.0,25620.0,0.0361]
[1694011375768,3.73084243,25621.0,25620.0,0.0361]
[1694011375974,3.01337262,25621.0,25620.0,0.0361]
[1694011376183,2.82833343,25621.0,25620.0,0.0361]
[1694011376512,3.60894243,25621.0,25620.0,0.0361]
[1694011376921,2.82833343,25621.0,25620.0,0.0361]
[1694011377310,3.60894243,25621.0,25620.0,0.0361]
[1694011377500,2.82833343,25621.0,25620.0,0.0361]
[1694011377887,0.16875736,25621.0,25620.0,3.30641867]
[1694011378233,0.16875736,25621.0,25620.0,2.52577867]
[1694011378458,0.35383239,25621.0,25620.0,2.52577867]
[1694011379563,0.21502524,25621.0,25620.0,2.52577867]
[1694011380370,0.21502524,25621.0,25620.0,2.64767867]
[1694011380778,0.21502524,25621.0,25620.0,3.42831867]
[1694011381147,0.1688158,25621.0,25620.0,3.49964517]
[1694011381359,0.35389083,25621.0,25620.0,3.49964517]
[1694011382468,0.21502524,25621.0,25620.0,3.49964517]
[1694011382670,0.21502524,25621.0,25620.0,3.52264517]
[1694011383264,0.35395034,25621.0,25620.0,3.52264517]
[1694011383462,0.21502524,25621.0,25620.0,3.52264517]
[1694011384828,0.21502524,25621.0,25620.0,2.74200517]
[1694011385033,0.44615419,25621.0,25620.0,2.71900517]
[1694011385238,0.44615419,25621.0,25620.0,2.59710517]
[1694011385604,0.26107916,25621.0,25620.0,2.59710517]
[1694011387060,0.26107916,25621.0,25620.0,3.37774517]
[1694011387188,0.26107916,25621.0,25620.0,2.59710517]
[1694011387398,0.02995021,25621.0,25620.0,2.59710517]
[1694011387593,0.26169172,25621.0,25620.0,2.71900517]
[1694011388179,0.26169172,25621.0,25620.0,3.49964517]
[1694011388387,0.26169172,25621.0,25620.0,2.71900517]
[1694011388388,0.02995021,25621.0,25620.0,2.71900517]
[1694011388583,0.26170576,25621.0,25620.0,2.71900517]
[1694011389440,0.02995021,25621.0,25620.0,2.71900517]
[1694011392064,0.02995021,25621.0,25620.0,2.59710517]
[1694011392410,0.02995021,25621.0,25620.0,1.59738]
[1694011392827,0.02995021,25621.0,25620.0,0.0361]
[1694011392828,0.30744946,25621.0,25620.0,0.0361]
[1694011393269,0.30744946,25621.0,25620.0,0.81674]
[1694011393904,0.30744946,25621.0,25620.0,0.0361]
[1694011394313,1.08805846,25621.0,25620.0,0.0361]
[1694011394548,0.81055921,25621.0,25620.0,0.0361]
[1694011394768,3.66093148,25621.0,25620.0,0.0361]
[1694011394974,3.69285538,25621.0,25620.0,0.0361]
[1694011396033,2.91224638,25621.0,25620.0,0.0361]
[1694011396859,2.13163738,25621.0,25620.0,0.0361]
[1694011397069,0.06187411,25621.0,25620.0,0.0361]
[1694011397274,0.02995021,25621.0,25620.0,0.81674]
[1694011397487,0.02995021,25621.0,25620.0,1.59738]
[1694011397891,0.02995021,25621.0,25620.0,0.0361]
[1694011398304,0.81055921,25621.0,25620.0,0.0361]
[1694011398454,1.59116821,25621.0,25620.0,0.0361]
[1694011399299,1.62309211,25621.0,25620.0,0.0361]
[1694011399436,2.91224638,25621.0,25620.0,0.0361]
[1694011400269,2.79034638,25621.0,25620.0,0.0361]
[1694011401314,2.00973738,25621.0,25620.0,0.0361]
[1694011401824,1.22912838,25621.0,25620.0,0.0361]
[1694011402026,0.06187411,25621.0,25620.0,0.0361]
[1694011402331,0.30793573,25621.0,25620.0,1.78577512]
[1694011405157,0.30793573,25621.0,25620.0,2.56641512]
[1694011405279,0.02995021,25621.0,25620.0,2.56641512]
[1694011405480,0.02995021,25621.0,25620.0,1.78577512]
[1694011407283,0.02995021,25621.0,25620.0,0.0361]
[1694011407484,1.71306821,25621.0,25620.0,0.0361]
[1694011407692,2.91224638,25621.0,25620.0,0.0361]
[1694011409242,3.69285538,25621.0,25620.0,0.0361]
[1694011410071,3.69085538,25621.0,25620.0,0.0151]
[1694011410466,3.71285538,25621.0,25620.0,0.0171]
[1694011410663,3.69085538,25621.0,25620.0,0.0151]
[1694011410948,3.68985538,25621.0,25620.0,0.0001]
[1694011411136,4.06125538,25621.0,25620.0,0.0021]
[1694011411466,4.96125538,25621.0,25620.0,0.0021]
[1694011411660,4.93925538,25621.0,25620.0,0.0001]
[1694011411808,4.74015538,25621.0,25620.0,0.0001]
[1694011412214,3.98454638,25621.0,25620.0,0.0021]
[1694011412415,4.29719229,25621.0,25620.0,0.0021]
[1694011412694,4.27219229,25621.0,25620.0,0.0001]
[1694011413307,2.71097429,25621.0,25620.0,0.0001]
[1694011413514,2.39832838,25621.0,25620.0,0.0001]
[1694011413715,3.20093738,25621.0,25620.0,0.0021]
[1694011414126,3.05063738,25621.0,25620.0,0.0021]
[1694011414330,3.07563738,25621.0,25620.0,0.0041]
[1694011414943,4.63685538,25621.0,25620.0,0.0041]
[1694011416219,4.94950129,25621.0,25620.0,0.0041]
[1694011417439,4.63685538,25621.0,25620.0,0.0041]
[1694011417655,4.77209538,25621.0,25620.0,0.0041]
[1694011417865,4.79641538,25621.0,25620.0,0.0041]
[1694011418073,4.79533538,25621.0,25620.0,0.0041]
[1694011418295,4.935976,25621.0,25620.0,0.0041]
[1694011418496,4.936276,25621.0,25620.0,0.0041]
[1694011418715,4.934056,25621.0,25620.0,0.0041]
[1694011418928,4.935316,25621.0,25620.0,0.0041]
[1694011419131,4.935376,25621.0,25620.0,0.0041]
[1694011419334,4.943896,25621.0,25620.0,0.0041]
[1694011419540,4.81893538,25621.0,25620.0,0.0041]
[1694011419723,4.80819538,25621.0,25620.0,0.0041]
[1694011420020,4.73685538,25621.0,25620.0,0.0041]
[1694011420263,5.43685538,25621.0,25620.0,0.0041]
[1694011421175,4.73685538,25621.0,25620.0,0.0041]
[1694011422418,4.80993538,25621.0,25620.0,0.0041]
[1694011422617,4.80933538,25621.0,25620.0,0.0041]
[1694011422817,4.80525538,25621.0,25620.0,0.0041]
[1694011423194,5.04901067,25621.0,25620.0,0.0041]
[1694011423851,0.9,25617.0,25615.0,0.799675]
[1694011424057,0.2312082,25616.0,25615.0,0.799675]
[1694011424238,0.23301657,25616.0,25615.0,0.799675]
[1694011424461,0.44306225,25616.0,25615.0,1.580467]
[1694011425093,0.44306225,25616.0,25615.0,0.799675]
[1694011425926,0.44306225,25616.0,25615.0,0.018896]
[1694011426540,0.44306225,25616.0,25615.0,0.019896]
[1694011426967,0.44306225,25616.0,25615.0,0.022896]
[1694011427395,0.44306225,25616.0,25615.0,0.021896]
[1694011427599,0.21385405,25616.0,25615.0,0.802688]
[1694011427808,0.44506225,25616.0,25615.0,0.797688]
[1694011428013,0.44506225,25616.0,25615.0,0.016896]
[1694011428427,2.39323152,25616.0,25615.0,0.016896]
[1694011428633,2.16202332,25616.0,25615.0,0.016896]
[1694011429370,2.39323152,25616.0,25615.0,0.016896]
[1694011429604,1.42750995,25616.0,25615.0,0.016896]
[1694011429874,1.42750995,25616.0,25615.0,0.797688]
[1694011429875,0.83169246,25616.0,25615.0,0.797688]
[1694011430025,0.83169246,25616.0,25615.0,1.57848]
[1694011430224,0.60048426,25616.0,25615.0,1.57848]
[1694011430779,0.21383899,25616.0,25615.0,0.797688]
[1694011431113,0.21383899,25616.0,25615.0,1.57848]
[1694011431673,0.21383899,25616.0,25615.0,0.016896]
[1694011431847,0.02889448,25616.0,25615.0,0.016896]
[1694011432054,0.80965648,25616.0,25615.0,0.016896]
[1694011432261,1.59041848,25616.0,25615.0,0.016896]
[1694011433813,1.19630175,25616.0,25615.0,0.016896]
[1694011434460,1.42750809,25616.0,25615.0,0.016896]
[1694011435058,0.64674609,25616.0,25615.0,0.016896]
[1694011435280,0.83172852,25616.0,25615.0,0.797688]
[1694011436307,0.83175611,25616.0,25615.0,0.797688]
[1694011436459,0.64674609,25616.0,25615.0,0.797688]
[1694011436921,0.26010082,25616.0,25615.0,0.797688]
[1694011437099,0.26010082,25616.0,25615.0,1.57848]
[1694011439166,0.26010082,25616.0,25615.0,2.359272]
[1694011439332,0.26010082,25616.0,25615.0,2.354272]
[1694011440122,0.26010082,25616.0,25615.0,1.57348]
[1694011440319,0.26010082,25616.0,25615.0,2.354272]
[1694011440765,0.26010082,25616.0,25615.0,1.57348]
[1694011440976,0.26010082,25616.0,25615.0,0.792688]
[1694011441287,0.26010082,25616.0,25615.0,0.011896]
[1694011442534,1.04086282,25616.0,25615.0,0.011896]
[1694011442767,3.15717559,25616.0,25615.0,0.011896]
[1694011442957,3.93793759,25616.0,25615.0,0.011896]
[1694011443171,3.69237539,25616.0,25615.0,0.011896]
[1694011443591,3.75891539,25616.0,25615.0,0.011896]
[1694011443797,3.81903539,25616.0,25615.0,0.011896]
[1694011444012,3.82821076,25616.0,25615.0,0.011896]
[1694011444220,4.14317416,25616.0,25615.0,0.011896]
[1694011444431,4.14329416,25616.0,25615.0,0.011896]
[1694011444649,4.06469416,25616.0,25615.0,0.011896]
[1694011445719,3.75237076,25616.0,25615.0,0.011896]
[1694011446155,4.06469416,25616.0,25615.0,0.011896]
[1694011446586,3.75237076,25616.0,25615.0,0.011896]
[1694011448710,3.95767076,25616.0,25615.0,0.011896]
[1694011448895,4.26981416,25616.0,25615.0,0.011896]
[1694011449124,4.27359416,25616.0,25615.0,0.011896]
[1694011449334,4.27281416,25616.0,25615.0,0.011896]
[1694011449534,4.27081416,25616.0,25615.0,0.011896]
[1694011449737,4.34261416,25616.0,25615.0,0.013896]
[1694011449963,4.50899416,25616.0,25615.0,0.013896]
[1694011450167,4.50689416,25616.0,25615.0,0.013896]
[1694011450407,0.56,25615.0,25614.0,0.22535753]
[1694011450614,4.19352164,25615.0,25614.0,0.22535753]
[1694011450812,4.30736465,25615.0,25614.0,0.22535753]
[1694011451013,4.32982681,25615.0,25614.0,0.22535753]
[1694011451232,4.32988681,25615.0,25614.0,0.22535753]
[1694011451418,4.33258681,25615.0,25614.0,0.22535753]
[1694011451622,4.33264681,25615.0,25614.0,0.22535753]
[1694011451822,4.31968681,25615.0,25614.0,0.22535753]
[1694011452069,4.75725021,25615.0,25614.0,0.22735753]
[1694011452279,4.78185021,25615.0,25614.0,0.22735753]
[1694011452490,5.08599021,25615.0,25614.0,0.22735753]
[1694011452704,5.08917021,25615.0,25614.0,0.22735753]
[1694011452913,5.08839021,25615.0,25614.0,0.18881907]
[1694011453123,5.81221021,25615.0,25614.0,0.19081907]
[1694011453325,5.81245021,25615.0,25614.0,0.19081907]
[1694011453528,5.82013021,25615.0,25614.0,0.19081907]
[1694011453741,5.81923021,25615.0,25614.0,0.19081907]
[1694011453948,5.81689021,25615.0,25614.0,0.19081907]
[1694011454165,5.81377021,25615.0,25614.0,0.1522806]
[1694011454373,5.80183021,25615.0,25614.0,0.1522806]
[1694011454578,5.47888681,25615.0,25614.0,0.1522806]
[1694011454782,5.47024681,25615.0,25614.0,0.1522806]
[1694011454993,5.47204681,25615.0,25614.0,0.1522806]
[1694011455205,5.47438681,25615.0,25614.0,0.1522806]
[1694011455418,5.47360681,25615.0,25614.0,0.1522806]
[1694011455626,5.37538681,25615.0,25614.0,0.1502806]
[1694011455834,4.65038681,25615.0,25614.0,0.1482806]
[1694011456044,4.69838681,25615.0,25614.0,0.1522806]
[1694011456480,1.4,25610.0,25607.0,1.97521185]
[1694011456694,0.00180837,25608.0,25607.0,1.869244]
[1694011456906,0.00180837,25608.0,25607.0,1.683944]
[1694011457125,0.02495337,25609.0,25607.0,2.46498]
[1694011457338,0.02495337,25609.0,25607.0,2.34308]
[1694011457543,0.02495337,25609.0,25608.0,0.1169]
[1694011457736,0.02495337,25609.0,25608.0,2.70646066]
[1694011457939,0.02495337,25609.0,25608.0,2.51105215]
[1694011459098,0.02495337,25609.0,25608.0,0.781005]
[1694011459507,0.02495337,25609.0,25608.0,0.002]
[1694011459884,0.02495337,25609.0,25608.0,0.783005]
[1694011460314,0.02495337,25609.0,25608.0,0.002]
[1694011460519,0.80592837,25609.0,25608.0,0.002]
[1694011460918,1.58690337,25609.0,25608.0,0.002]
[1694011461576,2.36887837,25609.0,25608.0,0.009]
[1694011461998,2.46130661,25609.0,25608.0,0.009]
[1694011462431,2.84795188,25609.0,25608.0,0.009]
[1694011462630,3.79884938,25609.0,25608.0,0.009]
[1694011462830,3.98370587,25609.0,25608.0,0.009]
[1694011463087,3.79884938,25609.0,25608.0,0.009]
[1694011463296,2.96878874,25609.0,25608.0,0.009]
[1694011463413,0.90116847,25609.0,25608.0,0.009]
[1694011464510,0.12019347,25609.0,25608.0,0.009]
[1694011464914,0.12019347,25609.0,25608.0,1.57101]
[1694011465705,0.02595337,25609.0,25608.0,2.56589526]
[1694011465911,0.02595337,25609.0,25608.0,2.473915]
[1694011466115,0.02595337,25609.0,25608.0,1.69291]
[1694011470108,0.02595337,25609.0,25608.0,0.911905]
[1694011470319,0.02595337,25609.0,25608.0,0.1309]
[1694011470908,0.80692837,25609.0,25608.0,0.009]
[1694011471106,1.58790337,25609.0,25608.0,0.009]
[1694011471361,0.80692837,25609.0,25608.0,0.009]
[1694011472520,0.1183851,25609.0,25608.0,2.352015]
[1694011473690,0.1183851,25609.0,25608.0,1.57101]
[1694011473899,0.1183851,25609.0,25608.0,0.009]
[1694011474133,1.03800247,25609.0,25608.0,0.009]
[1694011474342,0.25702747,25609.0,25608.0,0.009]
[1694011474550,0.16459574,25609.0,25608.0,0.009]
[1694011474754,0.16459574,25609.0,25608.0,0.790005]
[1694011475605,0.16459574,25609.0,25608.0,1.57101]
[1694011475816,0.11838804,25609.0,25608.0,1.57101]
[1694011476665,0.25703041,25609.0,25608.0,1.57101]
[1694011477323,0.25703041,25609.0,25608.0,0.790005]
[1694011477526,0.16459574,25609.0,25608.0,0.790005]
[1694011478315,0.16459574,25609.0,25608.0,1.57101]
[1694011479121,0.16459574,25609.0,25608.0,0.790005]
[1694011479789,0.16459574,25609.0,25608.0,0.009]
[1694011479998,1.81397399,25609.0,25608.0,0.009]
[1694011480202,1.81397399,25609.0,25608.0,0.0091]
[1694011480203,1.99890467,25609.0,25608.0,0.0091]
[1694011480407,0.98685905,25609.0,25608.0,0.0091]
[1694011480605,1.21792967,25609.0,25608.0,0.0091]
[1694011480809,1.99890467,25609.0,25608.0,0.0091]
[1694011481216,1.76783405,25609.0,25608.0,0.0091]
[1694011481622,1.99890467,25609.0,25608.0,0.0091]
[1694011482003,0.43695467,25609.0,25608.0,1.57111]
[1694011482213,0.43695467,25609.0,25608.0,2.352115]
[1694011482214,0.20588405,25609.0,25608.0,2.352115]
[1694011482420,0.20588405,25609.0,25608.0,1.57111]
[1694011482631,0.43695467,25609.0,25608.0,0.0091]
[1694011482846,0.43695467,25609.0,25608.0,0.790105]
[1694011483091,0.43695467,25609.0,25608.0,1.57111]
[1694011483322,0.43695467,25609.0,25608.0,0.0091]
[1694011483527,1.81397399,25609.0,25608.0,0.0091]
[1694011484355,1.58290337,25609.0,25608.0,0.0091]
[1694011484998,0.80192837,25609.0,25608.0,0.0091]
[1694011485378,0.02095337,25609.0,25608.0,1.57111]
[1694011485731,0.02095337,25609.0,25608.0,0.0091]
[1694011485938,0.80192837,25609.0,25608.0,0.0091]
[1694011487465,0.02095337,25609.0,25608.0,0.0091]
[1694011487720,0.02276174,25609.0,25608.0,0.0091]
[1694011487893,0.02276174,25609.0,25608.0,1.57111]
[1694011488296,0.02276174,25609.0,25608.0,0.790105]
[1694011488506,0.30005015,25609.0,25608.0,0.790105]
[1694011489276,0.30005015,25609.0,25608.0,0.0091]
[1694011489690,1.08102515,25609.0,25608.0,0.0041]
[1694011490931,1.07921678,25609.0,25608.0,0.0041]
[1694011491137,1.08102515,25609.0,25608.0,0.0041]
[1694011492585,1.1129484,25609.0,25608.0,0.0041]
[1694011492783,0.3319734,25609.0,25608.0,0.0041]
[1694011493220,1.1129484,25609.0,25608.0,0.0041]
[1694011493621,0.83565999,25609.0,25608.0,0.0041]
[1694011494778,0.05468499,25609.0,25608.0,1.65615628]
[1694011494982,0.02276174,25609.0,25608.0,1.65615628]
[1694011496486,0.02276174,25609.0,25608.0,1.56611]
[1694011497136,0.02276174,25609.0,25608.0,0.0041]
[1694011497717,0.83565999,25609.0,25608.0,0.0041]
[1694011497931,1.58471174,25609.0,25608.0,0.0041]
[1694011498144,1.61663499,25609.0,25608.0,0.0041]
[1694011499099,3.68713026,25609.0,25608.0,0.0041]
[1694011500010,1.40180837,25607.0,25606.0,0.01989699]
[1694011500222,1.40180837,25607.0,25605.0,0.119796]
[1694011500223,1.7144514,25607.0,25605.0,0.119796]
[1694011500453,0.00180837,25606.0,25605.0,0.119796]
[1694011500656,0.03373162,25606.0,25605.0,0.119796]
[1694011500866,0.00180837,25606.0,25605.0,0.119796]
[1694011501284,2.10144289,25606.0,25605.0,0.119796]
[1694011501488,0.95629466,25606.0,25605.0,0.119796]
[1694011501710,0.92437141,25606.0,25605.0,0.119796]
[1694011501912,0.94125988,25606.0,25605.0,0.119796]
[1694011502122,0.02437141,25606.0,25605.0,0.119796]
[1694011502336,0.02256304,25606.0,25605.0,0.119796]
[1694011502540,0.03237141,25606.0,25605.0,0.120796]
[1694011502750,0.03237141,25606.0,25605.0,1.89332463]
[1694011502962,0.03056304,25606.0,25605.0,1.89332463]
[1694011503175,0.31167633,25606.0,25605.0,1.89432463]
[1694011503603,0.03356304,25606.0,25605.0,2.75361326]
[1694011504205,0.03356304,25606.0,25605.0,1.97251626]
[1694011504410,0.03356304,25606.0,25605.0,2.75361326]
[1694011504615,0.03356304,25606.0,25605.0,2.77661326]
[1694011505243,0.02556304,25606.0,25605.0,2.77561326]
[1694011505697,0.02656304,25606.0,25605.0,2.78561326]
[1694011506119,0.02356304,25606.0,25605.0,2.78461326]
[1694011506334,0.02556304,25606.0,25605.0,2.79961326]
[1694011506974,0.02556304,25606.0,25605.0,3.0978239]
[1694011507814,0.25732209,25606.0,25605.0,3.8789209]
[1694011508026,0.25732209,25606.0,25605.0,3.22209674]
[1694011508237,0.25732209,25606.0,25605.0,3.2192476]
[1694011508646,0.25732209,25606.0,25605.0,3.0978239]
[1694011508852,0.02556304,25606.0,25605.0,3.99678258]
[1694011509275,0.02556304,25606.0,25605.0,3.21568558]
[1694011509679,0.02256304,25606.0,25605.0,3.96678258]
[1694011509883,0.25832553,25606.0,25605.0,3.22368558]
[1694011510107,0.23576249,25606.0,25605.0,3.22368558]
[1694011510323,0.25837335,25606.0,25605.0,3.22368558]
[1694011510734,0.25837335,25606.0,25605.0,3.64118793]
[1694011510942,0.25837335,25606.0,25605.0,4.42228493]
[1694011511997,0.25837335,25606.0,25605.0,3.64118793]
[1694011512401,0.25837335,25606.0,25605.0,4.42228493]
[1694011512610,0.25837335,25606.0,25605.0,3.64118793]
[1694011512793,0.25837335,25606.0,25605.0,4.03563966]
[1694011513030,0.25837335,25606.0,25605.0,4.01777798]
[1694011513245,0.11933726,25606.0,25605.0,4.65261798]
[1694011513477,0.02661086,25606.0,25605.0,5.34406325]
[1694011513690,0.004,25606.0,25605.0,5.37347035]
[1694011513899,0.004,25606.0,25605.0,5.37857035]
[1694011514109,0.004,25606.0,25605.0,5.37191035]
[1694011514346,0.004,25606.0,25605.0,5.36261035]
[1694011514554,0.004,25606.0,25605.0,4.70397798]
[1694011514555,0.0967264,25606.0,25605.0,4.70397798]
[1694011514979,0.002,25606.0,25605.0,4.68297798]
[1694011515182,0.002,25606.0,25605.0,4.75881798]
[1694011515395,0.0947264,25606.0,25605.0,4.75965798]
[1694011515619,0.002,25606.0,25605.0,4.68297798]
[1694011515822,0.002,25606.0,25605.0,4.70597798]
[1694011516236,0.002,25606.0,25605.0,5.01794194]
[1694011516642,0.23181558,25607.0,25606.0,0.17819163]
[1694011516842,0.23181558,25607.0,25606.0,4.1340009]
[1694011517672,0.0927264,25607.0,25606.0,4.1340009]
[1694011518308,0.0927264,25607.0,25606.0,4.5432009]
[1694011518513,0.0927264,25607.0,25606.0,4.99920617]
[1694011518724,0.0947264,25607.0,25606.0,5.02606617]
[1694011518940,0.0947264,25607.0,25606.0,5.02498617]
[1694011519137,0.0947264,25607.0,25606.0,5.02402617]
[1694011519466,0.0947264,25607.0,25606.0,5.02054617]
[1694011519666,0.0947264,25607.0,25606.0,5.03062617]
[1694011519870,0.0947264,25607.0,25606.0,5.02456617]
[1694011520053,0.0947264,25607.0,25606.0,4.95484617]
[1694011520813,0.0967264,25607.0,25606.0,4.97884617]
[1694011522113,0.0967264,25607.0,25606.0,5.117895]
[1694011522718,0.0967264,25607.0,25606.0,4.32204973]
[1694011522923,0.14308918,25607.0,25606.0,4.32204973]
[1694011523132,0.35282688,25607.0,25606.0,4.32204973]
[1694011523343,0.35282688,25607.0,25606.0,0.36624046]
[1694011523344,0.44550019,25607.0,25606.0,0.36624046]
[1694011523545,0.02828436,25607.0,25606.0,0.049]
[1694011523753,0.0389617,25607.0,25606.0,0.049]
[1694011524588,2.79923289,25607.0,25606.0,0.049]
[1694011524786,2.79923289,25607.0,25606.0,0.025]
[1694011524787,3.3320819,25607.0,25606.0,0.025]
[1694011524991,0.00180837,25606.0,25605.0,0.114796]
[1694011525212,0.27981193,25606.0,25605.0,0.114796]
[1694011525417,2.62300993,25606.0,25605.0,0.114796]
[1694011525637,3.0096552,25606.0,25605.0,0.114796]
[1694011526032,2.76357156,25606.0,25605.0,0.114796]
[1694011526230,2.88547156,25606.0,25605.0,0.114796]
[1694011526448,3.38547156,25606.0,25605.0,0.114796]
[1694011526639,3.69836587,25606.0,25605.0,0.114796]
[1694011526838,3.38547156,25606.0,25605.0,0.114796]
[1694011527249,3.45333156,25606.0,25605.0,0.114796]
[1694011527450,3.42984662,25606.0,25605.0,0.116796]
[1694011527852,3.40547156,25606.0,25605.0,0.116796]
[1694011528056,3.38547156,25606.0,25605.0,0.114796]
[1694011528268,3.79794587,25606.0,25605.0,0.116796]
[1694011528464,3.98522587,25606.0,25605.0,0.118796]
[1694011528674,3.99222557,25606.0,25605.0,0.118796]
[1694011528870,3.99426557,25606.0,25605.0,0.118796]
[1694011529076,4.00026557,25606.0,25605.0,0.118796]
[1694011529295,4.00026557,25606.0,25604.0,0.029796]
[1694011529296,1.06180837,25605.0,25604.0,0.029796]
[1694011529514,4.24556456,25605.0,25604.0,0.029796]
[1694011529716,4.64866819,25605.0,25604.0,0.029796]
[1694011529928,4.65220819,25605.0,25604.0,0.029796]
[1694011530129,4.65958819,25605.0,25604.0,0.029796]
[1694011530334,4.38730456,25605.0,25604.0,0.029796]
[1694011530537,4.52752456,25605.0,25604.0,0.029796]
[1694011530776,4.55116456,25605.0,25604.0,0.031796]
[1694011530993,4.41790456,25605.0,25604.0,0.031796]
[1694011531202,4.38476456,25605.0,25604.0,0.029796]
[1694011531445,4.41221077,25605.0,25604.0,0.029796]
[1694011531649,4.89018496,25605.0,25604.0,0.031796]
[1694011531901,4.89348496,25605.0,25604.0,0.031796]
[1694011532087,0.16030837,25604.0,25603.0,0.00436126]
[1694011532316,0.06,25593.0,25590.0,0.781538]
[1694011532541,0.12367037,25592.0,25591.0,0.781523]
[1694011533175,0.05989994,25591.0,25590.0,0.1219]
[1694011533389,0.035,25589.0,25587.0,0.00383035]
[1694011533597,0.035,25589.0,25588.0,0.00446251]
[1694011533810,0.035,25589.0,25588.0,1.563232]
[1694011534034,0.035,25589.0,25588.0,2.47255922]
[1694011534242,0.035,25589.0,25588.0,0.1219]
[1694011534461,0.035,25589.0,25588.0,2.466748]
[1694011534900,0.49939994,25591.0,25588.0,2.466748]
[1694011535115,0.13489994,25594.0,25590.0,0.1219]
[1694011535323,0.15489994,25594.0,25590.0,0.56130338]
[1694011535532,0.135,25594.0,25592.0,0.00535778]
[1694011535774,0.135,25594.0,25593.0,1.684826]
[1694011535775,0.15489994,25594.0,25593.0,1.684826]
[1694011535988,0.15489994,25594.0,25593.0,1.68906477]
[1694011536197,0.15489994,25594.0,25593.0,2.47130356]
[1694011536828,0.19794927,25594.0,25591.0,0.903409]
[1694011537086,0.19794927,25594.0,25593.0,0.781463]
[1694011537291,0.19794927,25594.0,25593.0,2.07598417]
[1694011537292,0.001,25594.0,25593.0,2.07598417]
[1694011537506,0.001,25594.0,25593.0,2.90044717]
[1694011537715,0.02,25597.0,25593.0,2.90044717]
[1694011537933,0.02,25597.0,25596.0,0.1219]
[1694011537934,0.115,25597.0,25596.0,0.1219]
[1694011538140,0.15489994,25597.0,25596.0,0.1219]
[1694011538360,0.52710375,25601.0,25596.0,1.684644]
[1694011538361,0.09989994,25598.0,25596.0,1.684644]
[1694011538567,0.115,25597.0,25596.0,2.344116]
[1694011538774,0.15489994,25597.0,25596.0,2.466016]
[1694011539187,0.035,25598.0,25596.0,2.466016]
[1694011539393,0.15489994,25599.0,25597.0,0.1219]
[1694011539618,0.15489994,25599.0,25596.0,3.094167]
[1694011539619,0.15489994,25599.0,25598.0,0.1219]
[1694011539829,0.15489994,25599.0,25598.0,1.684522]
[1694011540030,0.25399561,25599.0,25598.0,0.903211]
[1694011540448,0.25399561,25599.0,25598.0,0.1219]
[1694011540850,0.22009567,25599.0,25598.0,0.1219]
[1694011541115,0.02,25598.0,25597.0,0.00425384]
[1694011541327,0.02,25598.0,25595.0,0.00499608]
[1694011541468,0.02,25594.0,25590.0,0.00902039]
[1694011541671,0.08377043,25593.0,25591.0,0.00566469]
[1694011542075,0.08377043,25593.0,25592.0,0.00444283]
[1694011542274,0.801481,25593.0,25590.0,0.004]
[1694011542607,0.15489994,25591.0,25590.0,0.004]
[1694011544437,2.49947194,25591.0,25590.0,0.004]
[1694011544680,0.15489994,25591.0,25590.0,0.00896927]
[1694011544890,2.15789994,25591.0,25590.0,0.00896927]
[1694011546730,2.18563994,25591.0,25590.0,0.00896927]
[1694011547381,3.74868794,25591.0,25590.0,0.00896927]
[1694011547592,3.87058794,25591.0,25590.0,0.004]
[1694011547798,2.30753994,25591.0,25590.0,0.00921787]
[1694011548008,2.18563994,25591.0,25590.0,0.00921787]
[1694011549844,2.18563994,25591.0,25590.0,0.004]
[1694011550051,2.18563994,25591.0,25590.0,2.47626319]
[1694011550259,2.18563994,25591.0,25590.0,1.68970819]
[1694011550671,2.18563994,25591.0,25590.0,0.12659819]
[1694011551058,2.18563994,25591.0,25590.0,0.90815319]
[1694011551292,2.18563994,25591.0,25590.0,2.47126319]
[1694011551918,2.18563994,25591.0,25590.0,0.12659819]
[1694011552126,2.18563994,25591.0,25590.0,0.00569819]
[1694011553166,2.18563994,25591.0,25587.0,0.781631]
[1694011553167,0.115,25589.0,25587.0,1.685159]
[1694011553378,0.115,25589.0,25586.0,0.78593694]
[1694011553379,0.02,25588.0,25586.0,0.78593694]
[1694011553565,0.08377043,25588.0,25586.0,1.56760494]
[1694011553797,0.02,25588.0,25587.0,0.00506817]
[1694011554411,0.02,25588.0,25587.0,1.56836017]
[1694011554617,0.02,25588.0,25587.0,2.35000617]
[1694011554824,0.02,25588.0,25587.0,2.33500617]
[1694011555240,0.02,25588.0,25587.0,1.67526017]
[1694011555447,0.02,25588.0,25587.0,1.55336017]
[1694011555648,0.02,25588.0,25587.0,2.33500617]
[1694011556281,0.022,25588.0,25587.0,2.33500617]
[1694011556695,0.022,25588.0,25586.0,2.344995]
[1694011556696,0.12405805,25588.0,25586.0,2.344995]
[1694011556929,0.022,25588.0,25586.0,2.344995]
[1694011557752,0.02,25588.0,25586.0,2.344995]
[1694011557955,0.1,25588.0,25586.0,2.344995]
[1694011558360,0.102,25588.0,25586.0,2.344995]
[1694011558775,0.102,25588.0,25586.0,3.248572]
[1694011559186,0.102,25588.0,25586.0,2.466895]
[1694011559541,0.102,25588.0,25586.0,2.344995]
[1694011560348,0.102,25588.0,25586.0,3.248572]
[1694011560542,0.102,25588.0,25587.0,0.1399]
[1694011560543,0.004,25588.0,25587.0,0.1399]